fUST/lending_fUST_20241124
["ID","MTS","AMOUNT","RATE_DAILY","PERIOD"]
[343135557,1732378045149,-188.994283,0.00013558,2]
[343135558,1732378045173,-188.994283,0.00013973,2]
[343135559,1732378045194,-384.2306696,0.00018335,2]
[343135560,1732378045213,-3000.0,0.00018484,2]
[343135561,1732378045233,-277.994653,0.00018601,2]
[343135562,1732378045253,-165.191483,0.00019178,2]
[343135563,1732378045278,-300.0,0.00019212,2]
[343135564,1732378045301,-300.0,0.00019212,2]
[343135565,1732378045325,-500.0,0.00019213,2]
[343135566,1732378045348,-500.0,0.00019213,2]
[343135567,1732378045372,-500.0,0.00019213,2]
[343135568,1732378045394,-500.0,0.00019213,2]
[343135569,1732378045415,-500.0,0.00019213,2]
[343135570,1732378045434,-500.0,0.00019213,2]
[343135571,1732378045456,-500.0,0.00019213,2]
[343135572,1732378045476,-500.0,0.00019213,2]
[343135573,1732378045496,-500.0,0.00019213,2]
[343135574,1732378045516,-500.0,0.00019213,2]
[343135575,1732378045539,-500.0,0.00019213,2]
[343135576,1732378045559,-500.0,0.00019213,2]
[343135577,1732378045580,-352.94345338,0.00019213,2]
[343135578,1732378045602,-500.0,0.00019213,2]
[343135579,1732378045623,-500.0,0.00019213,2]
[343135580,1732378045650,-500.0,0.00019213,2]
[343135581,1732378045672,-500.0,0.00019213,2]
[343135582,1732378045694,-500.0,0.00019213,2]
[343135583,1732378045715,-500.0,0.00019213,2]
[343135584,1732378045735,-500.0,0.00019213,2]
[343135585,1732378045758,-354.50287761,0.00019213,2]
[343135586,1732378045783,-277.994653,0.00019286,2]
[343135587,1732378045804,-160.32,0.00019487,2]
[343135588,1732378045825,-295.23763174,0.00019487,2]
[343135589,1732378045847,-500.0,0.00019487,2]
[343135590,1732378045868,-251.64,0.00019487,2]
[343135591,1732378045891,-500.0,0.00019487,2]
[343135592,1732378045915,-164.91,0.00019487,2]
[343135593,1732378045938,-624.43,0.00019487,2]
[343135594,1732378045959,-500.0,0.00019761,2]
[343135595,1732378045980,-500.44,0.00019761,2]
[343135596,1732378046001,-874.34009081,0.00019871,2]
[343135597,1732378046028,-308.76996567,0.00019942,2]
[343135598,1732378046049,-16168.84930219,0.00019942,2]
[343135639,1732378232252,-500.0,0.00019941,2]
[343135641,1732378232262,-886.58768933,0.00019942,2]
[343135643,1732378232273,-980.41239292,0.00019942,2]
[343135717,1732378235682,-4015.53148289,0.00019942,2]
[343135752,1732378238426,-500.0,0.00019941,2]
[343135754,1732378238444,-2848.61913267,0.00019942,2]
[343135756,1732378238453,-277.994653,0.00019971,2]
[343135758,1732378238463,-219.0,0.0002,2]
[343135760,1732378238472,-525.79,0.00020035,2]
[343135762,1732378238484,-500.0,0.00020215,2]
[343135764,1732378238494,-500.0,0.00020215,2]
[343135766,1732378238503,-869.277331,0.00020425,2]
[343135768,1732378238513,-300.0,0.00020447,2]
[343135770,1732378238522,-188.994283,0.00020447,2]
[343135772,1732378238532,-300.0,0.00020448,2]
[343135775,1732378238542,-500.0,0.00020489,2]
[343135777,1732378238551,-171.83104106,0.00020489,2]
[343135779,1732378238560,-500.0,0.00020763,2]
[343135781,1732378238569,-1517.10308282,0.00021,2]
[343136286,1732378243607,-391.91032371,0.00021,2]
[343136296,1732378243689,-26.2345538,0.00021,2]
[343136576,1732378246458,-1681.42069367,0.00021,2]
[343136578,1732378246468,-250.0,0.00021037,2]
[343136580,1732378246477,-1352.270948,0.00021121,2]
[343136582,1732378246486,-163.352561,0.00021949,2]
[343136584,1732378246497,-420.0,0.00022254,2]
[343136585,1732378246506,-420.0,0.00022493,2]
[343136587,1732378246515,-167.02427896,0.00022772,2]
[343136589,1732378246525,-500.0,0.00022772,2]
[343136591,1732378246535,-500.0,0.00022772,2]
[343136592,1732378246544,-500.0,0.00022772,2]
[343136594,1732378246554,-526.89,0.00022772,2]
[343136596,1732378246563,-500.0,0.00022772,2]
[343136598,1732378246573,-500.0,0.00022772,2]
[343136600,1732378246583,-500.0,0.00022772,2]
[343136601,1732378246593,-500.0,0.00022772,2]
[343136602,1732378246602,-500.22728908,0.00022772,2]
[343136603,1732378246613,-500.0,0.00022772,2]
[343136604,1732378246622,-500.0,0.00022772,2]
[343136605,1732378246632,-500.0,0.00022772,2]
[343136606,1732378246642,-500.0,0.00022772,2]
[343136607,1732378246651,-579.36543951,0.00022772,2]
[343136608,1732378246661,-520.49519383,0.00022772,2]
[343136609,1732378246671,-500.0,0.00022772,2]
[343136610,1732378246680,-500.0,0.00022772,2]
[343136611,1732378246690,-500.0,0.00022772,2]
[343136612,1732378246704,-306.58,0.00022772,2]
[343136613,1732378246716,-500.0,0.00022772,2]
[343136614,1732378246726,-500.0,0.00022772,2]
[343136616,1732378246736,-500.0,0.00022772,2]
[343136618,1732378246748,-500.0,0.00022772,2]
[343136620,1732378246761,-500.0,0.00022772,2]
[343136622,1732378246771,-500.0,0.00022772,2]
[343136624,1732378246780,-500.0,0.00022772,2]
[343136626,1732378246789,-325.09279545,0.00022772,2]
[343136628,1732378246798,-1052.15,0.00022772,2]
[343136630,1732378246808,-500.0,0.00022772,2]
[343136632,1732378246817,-500.0,0.00022773,2]
[343136634,1732378246828,-500.0,0.00022773,2]
[343136636,1732378246837,-500.0,0.00022773,2]
[343136638,1732378246846,-500.0,0.00023046,2]
[343136640,1732378246856,-165.0,0.00023046,2]
[343136642,1732378246866,-288.01,0.00023046,2]
[343136644,1732378246876,-500.0,0.00023046,2]
[343136646,1732378246885,-500.0,0.00023046,2]
[343136648,1732378246895,-500.0,0.00023046,2]
[343136650,1732378246908,-500.0,0.00023046,2]
[343136652,1732378246918,-1052.15,0.00023046,2]
[343136654,1732378246928,-500.0,0.00023046,2]
[343136656,1732378246938,-500.0,0.00023047,2]
[343136658,1732378246950,-275.20088751,0.00023047,2]
[343136660,1732378246960,-180.137,0.00023106,2]
[343136662,1732378246969,-500.0,0.0002332,2]
[343136664,1732378246979,-500.0,0.0002332,2]
[343136666,1732378246989,-339.0,0.0002332,2]
[343136668,1732378246999,-500.0,0.0002332,2]
[343136670,1732378247009,-500.0,0.0002332,2]
[343136672,1732378247018,-1052.15,0.0002332,2]
[343136674,1732378247029,-500.0,0.0002332,2]
[343136676,1732378247039,-500.0,0.00023321,2]
[343136678,1732378247049,-355.31859028,0.00023495,2]
[343136680,1732378247059,-188.704,0.00023498,2]
[343136682,1732378247068,-530.0,0.00023498,2]
[343136684,1732378247079,-2380.0,0.00023498,2]
[343136686,1732378247088,-1106.0,0.00023498,2]
[343136688,1732378247098,-500.0,0.00023594,2]
[343136690,1732378247108,-469.72,0.00023594,2]
[343136692,1732378247118,-548.21,0.00023594,2]
[343136694,1732378247128,-1052.15,0.00023594,2]
[343136696,1732378247138,-500.0,0.00023594,2]
[343136698,1732378247148,-500.0,0.00023595,2]
[343136700,1732378247157,-500.0,0.00023868,2]
[343136702,1732378247167,-1052.15,0.00023868,2]
[343136704,1732378247178,-500.0,0.00023868,2]
[343136706,1732378247188,-500.0,0.00023869,2]
[343136708,1732378247200,-600.0,0.00023885,2]
[343136710,1732378247209,-1422.22,0.000241,2]
[343136712,1732378247219,-292.79,0.00024142,2]
[343136714,1732378247228,-1052.15,0.00024142,2]
[343136716,1732378247239,-500.0,0.00024142,2]
[343136718,1732378247248,-500.0,0.00024143,2]
[343136721,1732378247259,-587.0,0.00024221,2]
[343136723,1732378247268,-1052.15,0.00024416,2]
[343136724,1732378247278,-500.0,0.00024416,2]
[343136727,1732378247289,-500.0,0.00024417,2]
[343136729,1732378247298,-1052.15,0.0002469,2]
[343136731,1732378247308,-177.49,0.0002469,2]
[343136733,1732378247317,-500.0,0.00024691,2]
[343136735,1732378247327,-587.0,0.00024742,2]
[343136737,1732378247337,-1052.15,0.00024964,2]
[343136739,1732378247347,-535.16331665,0.00024965,2]
[343136741,1732378247356,-600.0,0.00024981,7]
[343136743,1732378247366,-300.0,0.00025,2]
[343136745,1732378247376,-300.0,0.00025,2]
[343136747,1732378247386,-273.599999,0.00025,2]
[343136749,1732378247396,-1052.15,0.00025238,2]
[343136751,1732378247405,-1052.15,0.00025512,2]
[343136753,1732378247414,-300.0,0.000257,2]
[343136755,1732378247424,-355.31859028,0.0002573,2]
[343136757,1732378247437,-1052.15,0.00025786,2]
[343136759,1732378247447,-600.0,0.00025803,7]
[343136760,1732378247458,-1052.15,0.0002606,2]
[343136763,1732378247468,-1052.15,0.00026333,2]
[343136765,1732378247478,-823.0,0.00026362,2]
[343136767,1732378247488,-1060.048,0.00026498,2]
[343136769,1732378247498,-1052.15,0.00026607,2]
[343136770,1732378247507,-600.0,0.00026625,7]
[343136773,1732378247518,-300.0,0.000267,2]
[343136775,1732378247528,-1052.15,0.00026881,2]
[343136776,1732378247538,-188.994283,0.00026921,2]
[343136778,1732378247547,-1052.15,0.00027155,2]
[343136780,1732378247557,-179.94396094,0.00027216,2]
[343136783,1732378247567,-823.0,0.00027216,2]
[343136785,1732378247576,-500.0,0.00027397,2]
[343136796,1732378247680,-1052.15,0.00027429,2]
[343136798,1732378247689,-600.0,0.00027447,7]
[343136800,1732378247701,-1157.761479,0.000275,2]
[343136802,1732378247710,-300.0,0.000277,2]
[343136804,1732378247720,-1052.15,0.00027703,2]
[343136806,1732378247730,-161.94331762,0.00027899,2]
[343136809,1732378247750,-5039.35330872,0.00027909,18]
[343136811,1732378247762,-355.31859028,0.00027964,2]
[343136813,1732378247773,-1052.15,0.00027977,2]
[343136815,1732378247784,-161.94331762,0.00027989,2]
[343136817,1732378247795,-383.67,0.0002799,3]
[343136820,1732378247806,-191.83,0.0002799,3]
[343136822,1732378247816,-575.53,0.0002799,3]
[343136824,1732378247827,-1000.0,0.00028,2]
[343136826,1732378247838,-1025.66469317,0.00028,7]
[343136828,1732378247849,-159.0,0.00028,2]
[343136830,1732378247859,-345.0079231,0.00028055,2]
[343136832,1732378247869,-500.0,0.00028055,2]
[343136834,1732378247879,-500.0,0.00028055,2]
[343136836,1732378247890,-500.0,0.00028055,2]
[343136838,1732378247900,-500.0,0.00028055,2]
[343136840,1732378247910,-500.0,0.00028055,2]
[343136842,1732378247920,-500.0,0.00028055,2]
[343136844,1732378247930,-500.0,0.00028055,2]
[343136846,1732378247940,-500.0,0.00028055,2]
[343136848,1732378247951,-500.0,0.00028055,2]
[343136851,1732378247961,-500.0,0.00028055,2]
[343136852,1732378247971,-500.0,0.00028055,2]
[343136854,1732378247981,-152.35549628,0.00028055,2]
[343136857,1732378247991,-500.0,0.00028055,2]
[343136858,1732378248001,-500.0,0.00028055,2]
[343136861,1732378248011,-500.0,0.00028055,2]
[343136863,1732378248021,-390.19342369,0.00028055,2]
[343136865,1732378248031,-500.0,0.00028055,2]
[343136867,1732378248041,-500.0,0.00028055,2]
[343136869,1732378248052,-508.0903964,0.00028055,2]
[343136871,1732378248061,-500.0,0.00028055,2]
[343136873,1732378248071,-500.0,0.00028055,2]
[343136875,1732378248081,-500.0,0.00028055,2]
[343136877,1732378248091,-500.0,0.00028055,2]
[343136879,1732378248101,-400.7104566,0.00028055,2]
[343136881,1732378248111,-500.0,0.00028055,2]
[343136883,1732378248121,-500.0,0.00028055,2]
[343136885,1732378248130,-500.0,0.00028055,2]
[343136887,1732378248140,-500.0,0.00028055,2]
[343136889,1732378248151,-552.84526997,0.00028055,2]
[343136891,1732378248161,-500.0,0.00028055,2]
[343136893,1732378248171,-500.0,0.00028055,2]
[343136895,1732378248180,-500.0,0.00028055,2]
[343136897,1732378248191,-500.0,0.00028055,2]
[343136899,1732378248204,-500.0,0.00028055,2]
[343136901,1732378248215,-500.0,0.00028055,2]
[343136903,1732378248225,-500.0,0.00028055,2]
[343136905,1732378248236,-500.0,0.00028055,2]
[343136907,1732378248247,-500.0,0.00028055,2]
[343136909,1732378248258,-500.0,0.00028055,2]
[343136911,1732378248269,-500.0,0.00028055,2]
[343136913,1732378248279,-500.0,0.00028055,2]
[343136915,1732378248290,-500.0,0.00028055,2]
[343136917,1732378248300,-500.0,0.00028055,2]
[343136920,1732378248311,-500.0,0.00028055,2]
[343136922,1732378248321,-500.0,0.00028055,2]
[343136924,1732378248331,-500.0,0.00028055,2]
[343136926,1732378248340,-500.0,0.00028055,2]
[343136928,1732378248350,-242.70572719,0.00028055,2]
[343136930,1732378248360,-500.0,0.00028055,2]
[343136932,1732378248369,-500.0,0.00028055,2]
[343136934,1732378248379,-500.0,0.00028055,2]
[343136936,1732378248389,-500.0,0.00028055,2]
[343136938,1732378248399,-500.0,0.00028055,2]
[343136940,1732378248409,-500.0,0.00028055,2]
[343136941,1732378248418,-500.0,0.00028055,2]
[343136944,1732378248428,-500.0,0.00028055,2]
[343136946,1732378248439,-500.0,0.00028055,2]
[343136948,1732378248451,-500.0,0.00028055,2]
[343136950,1732378248461,-500.0,0.00028055,2]
[343136951,1732378248471,-500.0,0.00028055,2]
[343136954,1732378248481,-500.0,0.00028055,2]
[343136955,1732378248491,-175.34293862,0.00028056,2]
[343136958,1732378248503,-159.78284441,0.00028056,2]
[343136960,1732378248513,-196.12163552,0.00028056,2]
[343136962,1732378248523,-500.0,0.00028056,2]
[343136964,1732378248534,-314.55518027,0.00028056,2]
[343136966,1732378248545,-245499.05164725,0.00028057,2]
[343136973,1732378248611,-4500.94835275,0.00028057,2]
[343136975,1732378248621,-330.0,0.00028064,2]
[343136978,1732378248635,-1437.72947714,0.00028064,2]
[343136983,1732378248676,-10772.58206845,0.00028064,2]
[343136984,1732378248686,-161.94331762,0.00028078,2]
[343136987,1732378248696,-151.0,0.00028157,7]
[343136988,1732378248708,-151.0,0.00028157,7]
[343136991,1732378248719,-151.0,0.00028157,7]
[343136993,1732378248730,-151.032813,0.00028157,7]
[343136995,1732378248740,-500.0,0.00028173,5]
[343136997,1732378248750,-150.68256216,0.00028178,7]
[343136999,1732378248763,-0.31743784,0.00028178,7]
[343137001,1732378248774,-151.0,0.00028178,7]
[343137003,1732378248784,-151.0,0.00028178,7]
[343137005,1732378248794,-151.0,0.00028178,7]
[343137007,1732378248804,-151.0,0.00028178,7]
[343137008,1732378248814,-151.0,0.00028178,7]
[343137009,1732378248823,-151.0,0.00028178,7]
[343137010,1732378248833,-151.0,0.00028178,7]
[343137011,1732378248844,-56.90238529,0.00028178,7]
[343137152,1732378250351,500.0,0.00027271,120]
[343137321,1732378252103,222.59,0.00027271,120]
[343141494,1732378318457,500.0,0.00027271,120]
[343141608,1732379327303,8434.34105578,0.00026,30]
[343141624,1732379348128,-3309.17234536,0.000134,2]
[343141625,1732379362103,-3486.3468814,0.000134,2]
[343141626,1732379362123,-174.064524,0.00013833,2]
[343141627,1732379362144,-174.064524,0.00013973,2]
[343141628,1732379362163,-186.03115703,0.000176,2]
[343141750,1732379436204,-430.2114758,0.00017424,2]
[343141751,1732379436215,-430.2114758,0.000176,2]
[343141752,1732379436225,-191.2468088,0.00017755,2]
[343141753,1732379436235,-118.72168887,0.00017891,2]
[343141754,1732379436264,-2381.27831113,0.00017891,2]
[343141755,1732379436273,-2500.0,0.000179,2]
[343141756,1732379436289,-2616.6476064,0.00018033,2]
[343141757,1732379436299,-300.0,0.00018314,2]
[343141758,1732379436309,-9707.4153335,0.00018315,2]
[343141759,1732379436318,-1266.146378,0.00018759,2]
[343141761,1732379436329,-1155.7036753,0.00018909,2]
[343141763,1732379436338,-163.352561,0.00019178,2]
[343141764,1732379436348,-1321.4486529,0.00019401,2]
[343141765,1732379436357,-15366.36595861,0.0001999,2]
[343141766,1732379436367,-152.0,0.00019994,2]
[343141768,1732379436377,-13589.0,0.0002,2]
[343141770,1732379436386,-512.66907522,0.0002,2]
[343141772,1732379436396,-537.915662,0.00020099,2]
[343141774,1732379436406,-420.0,0.00020146,2]
[343141776,1732379436415,-399.76555572,0.00020347,2]
[343141778,1732379436424,-61224.03703696,0.00020377,2]
[343141780,1732379436434,-500.0,0.00020398,2]
[343141782,1732379436443,-500.0,0.00020401,2]
[343141784,1732379436453,-10600.7845073,0.00020402,2]
[343141787,1732379436463,-174.064524,0.00020447,2]
[343141789,1732379436472,-500.0,0.00020672,2]
[343141791,1732379436481,-500.0,0.00020675,2]
[343141793,1732379436491,-4341.748668,0.00020933,2]
[343141795,1732379436500,-500.0,0.00020946,2]
[343141797,1732379436509,-500.0,0.00020949,2]
[343141799,1732379436518,-500.0,0.0002122,2]
[343141801,1732379436527,-500.0,0.00021223,2]
[343141803,1732379436545,-399.76555566,0.00021452,2]
[343141805,1732379436554,-500.0,0.00021494,2]
[343141806,1732379436563,-500.0,0.00021497,2]
[343141808,1732379436573,-4341.748668,0.00021618,2]
[343141810,1732379436582,-169.491556,0.00021648,2]
[343141811,1732379436591,-169.491556,0.00021675,2]
[343141812,1732379436601,-169.491556,0.00021703,2]
[343141813,1732379436610,-169.491556,0.0002173,2]
[343141814,1732379436619,-165.60798,0.00021733,2]
[343141815,1732379436629,-169.491556,0.00021757,2]
[343141816,1732379436638,-500.0,0.00021768,2]
[343141817,1732379436647,-500.0,0.00021771,2]
[343141818,1732379436656,-341.0,0.00022,2]
[343141819,1732379436665,-157.0,0.00022,2]
[343141820,1732379436675,-500.0,0.00022042,2]
[343141821,1732379436684,-500.0,0.00022045,2]
[343141822,1732379436694,-341.0,0.00022192,2]
[343141823,1732379436703,-157.0,0.00022192,2]
[343141824,1732379436713,-4341.748668,0.00022303,2]
[343141825,1732379436722,-500.0,0.00022316,2]
[343141826,1732379436732,-500.0,0.00022319,2]
[343141827,1732379436741,-200.0,0.00022514,2]
[343141828,1732379436751,-399.76555566,0.00022557,2]
[343141829,1732379436761,-208.6,0.0002259,2]
[343141830,1732379436770,-500.0,0.00022593,2]
[343141831,1732379436779,-500.0,0.00022771,2]
[343141832,1732379436793,-500.0,0.00022771,2]
[343141833,1732379436802,-500.0,0.00022771,2]
[343141834,1732379436811,-528.07,0.00022772,2]
[343141835,1732379436821,-500.0,0.00022867,2]
[343141836,1732379436835,-341.0,0.00023014,2]
[343141837,1732379436845,-157.0,0.00023014,2]
[343141838,1732379436856,-500.0,0.00023045,2]
[343141839,1732379436867,-282.09003042,0.00023045,2]
[343141840,1732379436877,-500.0,0.00023045,2]
[343141841,1732379436887,-180.137,0.00023108,2]
[343141842,1732379436896,-500.0,0.00023141,2]
[343141843,1732379436905,-281.52422814,0.000232,2]
[343141844,1732379436915,-500.0,0.00023319,2]
[343141845,1732379436926,-500.0,0.00023319,2]
[343141846,1732379436935,-500.0,0.00023415,2]
[343141847,1732379436946,-500.0,0.00023593,2]
[343141848,1732379436957,-399.76555566,0.00023662,2]
[343141849,1732379436967,-500.0,0.00023689,2]
[343141850,1732379436978,-281.68,0.00023867,2]
[343141851,1732379436988,-500.0,0.00023885,2]
[343141852,1732379436999,-500.0,0.00023963,2]
[343141853,1732379437008,-1280.0,0.000241,2]
[343141854,1732379437019,-344.0,0.00024164,2]
[343141855,1732379437029,-158.0,0.00024164,2]
[343141856,1732379437043,-500.0,0.00024237,2]
[343141857,1732379437052,-500.0,0.00024511,2]
[343141858,1732379437062,-399.76555566,0.00024767,2]
[343141859,1732379437072,-500.0,0.00024785,2]
[343141860,1732379437082,-500.0,0.00024981,7]
[343141861,1732379437092,-500.0,0.00025059,2]
[343141862,1732379437102,-450.31614111,0.00025254,2]
[343141863,1732379437111,-500.0,0.00025254,2]
[343141864,1732379437121,-500.0,0.00025254,2]
[343141865,1732379437131,-500.0,0.00025254,2]
[343141866,1732379437141,-500.0,0.00025254,2]
[343141867,1732379437150,-500.0,0.00025254,2]
[343141868,1732379437160,-500.0,0.00025254,2]
[343141869,1732379437170,-500.0,0.00025254,2]
[343141870,1732379437180,-500.0,0.00025254,2]
[343141871,1732379437189,-500.0,0.00025254,2]
[343141872,1732379437199,-500.0,0.00025254,2]
[343141873,1732379437209,-500.0,0.00025254,2]
[343141874,1732379437219,-500.0,0.00025254,2]
[343141875,1732379437229,-500.0,0.00025254,2]
[343141876,1732379437239,-500.0,0.00025254,2]
[343141877,1732379437249,-500.0,0.00025254,2]
[343141878,1732379437259,-474.27057272,0.00025254,2]
[343141879,1732379437268,-579.94055583,0.00025254,2]
[343141880,1732379437278,-500.0,0.00025254,2]
[343141881,1732379437290,-500.0,0.00025254,2]
[343141882,1732379437300,-500.0,0.00025254,2]
[343141883,1732379437310,-500.0,0.00025254,2]
[343141884,1732379437320,-490.07104566,0.00025254,2]
[343141885,1732379437329,-500.0,0.00025254,2]
[343141886,1732379437339,-500.0,0.00025254,2]
[343141887,1732379437349,-500.0,0.00025254,2]
[343141888,1732379437360,-500.0,0.00025254,2]
[343141889,1732379437369,-500.0,0.00025254,2]
[343141890,1732379437381,-500.0,0.00025254,2]
[343141891,1732379437391,-500.0,0.00025254,2]
[343141892,1732379437401,-500.0,0.00025254,2]
[343141893,1732379437411,-2500.0,0.00025255,3]
[343141894,1732379437421,-2500.0,0.00025264,3]
[343141895,1732379437430,-2500.0,0.00025273,3]
[343141896,1732379437439,-500.0,0.00025333,2]
[343141897,1732379437449,-564.92085332,0.00025607,2]
[343141898,1732379437459,-384.0,0.000257,2]
[343141899,1732379437468,-341.0,0.00025775,2]
[343141900,1732379437478,-157.0,0.00025775,2]
[343141901,1732379437487,-399.76555566,0.00025872,2]
[343141902,1732379437496,-500.0,0.00026625,7]
[343141903,1732379437508,-300.0,0.000267,2]
[343141904,1732379437517,-575.51,0.00026911,3]
[343141905,1732379437527,-174.064524,0.00026921,2]
[343141906,1732379437539,-399.76555566,0.00026977,2]
[343141907,1732379437548,-191.83,0.0002707,3]
[343141908,1732379437557,-455.000455,0.0002708,4]
[343141909,1732379437567,-476.70942529,0.00027351,4]
[343141910,1732379437576,-341.0,0.00027386,2]
[343141911,1732379437586,-157.0,0.00027386,2]
[343141912,1732379437596,-341.0,0.00027616,2]
[343141913,1732379437605,-157.0,0.00027616,2]
[343141914,1732379437615,-300.0,0.000277,2]
[343141915,1732379437624,-818.0499988,0.00027837,2]
[343141916,1732379437634,-8290.24098106,0.00027878,2]
[343141917,1732379437643,-500.0,0.00027946,2]
[343141918,1732379437653,-250000.0,0.00027957,2]
[343141919,1732379437662,-570.18862619,0.00027959,2]
[343141920,1732379437671,-500.0,0.00027973,5]
[343141921,1732379437681,-463766.352182,0.00028,2]
[343141922,1732379437691,-330.0,0.00028078,2]
[343141923,1732379437700,-399.76555566,0.00028082,2]
[343141924,1732379437710,-151.0,0.00028182,7]
[343141925,1732379437719,-151.0,0.00028182,7]
[343141926,1732379437728,-151.0,0.00028182,7]
[343141927,1732379437738,-151.0,0.00028182,7]
[343141928,1732379437748,-151.0,0.00028182,7]
[343141929,1732379437757,-151.0,0.00028182,7]
[343141931,1732379437768,-151.0,0.00028182,7]
[343141932,1732379437777,-151.0,0.00028182,7]
[343141933,1732379437791,-151.0,0.00028182,7]
[343141934,1732379437801,-170.067437,0.00028182,7]
[343141935,1732379437810,-151.0,0.00028182,7]
[343141936,1732379437820,-151.0,0.00028182,7]
[343141937,1732379437832,-151.0,0.00028182,7]
[343141938,1732379437842,-235.41035,0.00028182,7]
[343141939,1732379437852,-512.66907522,0.00028182,2]
[343141940,1732379437861,-512.66907522,0.00028182,2]
[343141941,1732379437873,-2366.09762985,0.00028182,2]
[343141943,1732379437883,-199756.49100926,0.00028182,10]
[343141944,1732379437893,-1468432.9712519,0.00028182,10]
[343141945,1732379437902,-777116.57067018,0.00028182,10]
[343141946,1732379437912,-733289.13285214,0.00028182,10]
[343141948,1732379437923,-456.81232356,0.00028182,14]
[343141949,1732379437933,-521273.18347645,0.00028182,10]
[343141950,1732379437943,-2205917.09283218,0.00028182,10]
[343141951,1732379437956,-6820.87371149,0.00028182,10]
[343141952,1732379437970,-7893.5819765,0.00028182,10]
[343141953,1732379437982,-17074.99999995,0.00028182,10]
[343141957,1732379438094,-46598.66682937,0.00028182,10]
[343141959,1732379438106,-683979.69615625,0.00028182,10]
[343142001,1732379438624,-1597.87232015,0.00028182,10]
[343142003,1732379438636,-617.1781396,0.00028182,10]
[343142014,1732379438742,-5747.57799767,0.00028182,10]
[343142016,1732379438754,-407.10400863,0.00028182,10]
[343142022,1732379438805,-16985.49999993,0.00028182,10]
[343142025,1732379438816,-23103.77342556,0.00028182,10]
[343142027,1732379438831,-50168.47906748,0.00028182,10]
[343142029,1732379438842,-14401.93953805,0.00028182,10]
[343142031,1732379438854,-4470.0001,0.00028182,10]
[343142033,1732379438866,-10540.0,0.00028182,10]
[343142178,1732379440419,-2713.7037868,0.00028182,10]
[343142180,1732379440431,-13879.79999995,0.00028182,10]
[343142182,1732379440442,-48999.69040003,0.00028182,10]
[343142527,1732379443791,-10246.89999999,0.00028172,10]
[343142529,1732379443804,-7996.85000001,0.00028172,10]
[343142531,1732379443813,-11309.94999999,0.00028182,10]
[343142536,1732379443852,-5487.77876501,0.00028182,10]
[343142538,1732379443863,-3236.85199579,0.00028182,10]
[343142544,1732379443915,-6834.76324321,0.00028182,10]
[343142854,1732379446833,-157.0,0.00027,2]
[343142855,1732379446844,-1651.588334,0.00028182,10]
[343142861,1732379446901,-875.12622046,0.00028182,10]
[343144724,1732380545121,-164.394272,0.00013288,2]
[343144725,1732380545142,-164.394272,0.00013973,2]
[343144726,1732380562102,-600.0,0.00018985,2]
[343144727,1732380562123,-300.0,0.00019177,2]
[343144728,1732380562144,-300.0,0.00019177,2]
[343144729,1732380562165,-500.0,0.00019178,2]
[343144730,1732380562188,-500.0,0.00019178,2]
[343144731,1732380562208,-500.0,0.00019178,2]
[343144732,1732380562229,-306.33127589,0.00019178,2]
[343144733,1732380562249,-500.0,0.00019178,2]